fUSD/lending_fUSD_20250127
["ID","MTS","AMOUNT","RATE_DAILY","PERIOD"]
[350596893,1737985849654,-500.0,0.00010958,2]
[350596894,1737985849663,-500.0,0.00010958,2]
[350596895,1737985849673,-500.0,0.00010958,2]
[350596896,1737985849681,-311.1477447,0.00010958,2]
[350596897,1737985849691,-1326.94,0.00010958,2]
[350596898,1737985849700,-1326.94,0.00010958,2]
[350596899,1737985849708,-1326.94,0.00010958,2]
[350596900,1737985849717,-1326.94,0.00010958,2]
[350596901,1737985849726,-1326.94,0.00010958,2]
[350596902,1737985849735,-982.6,0.00010958,2]
[350596903,1737985849745,-982.6,0.00010958,2]
[350596904,1737985849754,-500.0,0.00010958,2]
[350596905,1737985849763,-982.6,0.00010958,2]
[350596906,1737985849773,-982.6,0.00010958,2]
[350596907,1737985849782,-500.0,0.00010958,2]
[350596908,1737985849791,-500.0,0.00010958,2]
[350596909,1737985849801,-500.0,0.00010958,2]
[350596910,1737985849810,-500.0,0.00010958,2]
[350596911,1737985849819,-500.0,0.00010958,2]
[350596912,1737985849828,-1309.3,0.00010958,2]
[350596913,1737985849837,-1309.3,0.00010958,2]
[350596914,1737985849846,-1309.3,0.00010958,2]
[350596915,1737985849856,-1309.3,0.00010958,2]
[350596916,1737985849865,-1309.3,0.00010958,2]
[350596917,1737985849874,-1309.3,0.00010958,2]
[350596918,1737985849884,-500.0,0.00010958,2]
[350596919,1737985849893,-500.0,0.00010958,2]
[350596920,1737985849902,-500.0,0.00010958,2]
[350596921,1737985849911,-500.0,0.00010958,2]
[350596922,1737985849920,-500.0,0.00010958,2]
[350596923,1737985849929,-500.0,0.00010958,2]
[350596924,1737985849938,-335.47938022,0.00010958,2]
[350596925,1737985849947,-150.40760204,0.00010958,2]
[350596926,1737985849956,-3144.17,0.00010958,2]
[350596927,1737985849965,-500.0,0.00010958,2]
[350596928,1737985849974,-3144.17,0.00010958,2]
[350596929,1737985849983,-3144.17,0.00010958,2]
[350596930,1737985849992,-500.0,0.00010958,2]
[350596931,1737985850001,-500.0,0.00010958,2]
[350596932,1737985850010,-3144.17,0.00010958,2]
[350596933,1737985850019,-500.0,0.00010958,2]
[350596934,1737985850029,-500.0,0.00010958,2]
[350596935,1737985850038,-3144.17,0.00010958,2]
[350596936,1737985850047,-623.39,0.00010958,2]
[350596937,1737985850056,-500.0,0.00010958,2]
[350596938,1737985850066,-363.2,0.00010958,2]
[350596939,1737985850075,-623.39,0.00010958,2]
[350596940,1737985850084,-3144.17,0.00010958,2]
[350596941,1737985850093,-500.0,0.00010958,2]
[350596942,1737985850102,-623.39,0.00010958,2]
[350596943,1737985850111,-623.39,0.00010958,2]
[350596944,1737985850119,-623.39,0.00010958,2]
[350596945,1737985850129,-150.59215505,0.00010958,2]
[350596946,1737985850138,-1308.62,0.00010958,2]
[350596947,1737985850147,-1308.62,0.00010958,2]
[350596948,1737985850156,-500.0,0.00010958,2]
[350596949,1737985850165,-1308.62,0.00010958,2]
[350596950,1737985850174,-539.22,0.00010958,2]
[350596951,1737985850183,-500.0,0.00010958,2]
[350596952,1737985850193,-500.0,0.00010958,2]
[350596953,1737985850203,-500.0,0.00010958,2]
[350596954,1737985850212,-539.22,0.00010958,2]
[350596955,1737985850221,-500.0,0.00010958,2]
[350596956,1737985850230,-500.0,0.00010958,2]
[350596957,1737985850239,-1308.62,0.00010958,2]
[350596958,1737985850248,-500.0,0.00010958,2]
[350596959,1737985850265,-539.22,0.00010958,2]
[350596960,1737985850274,-500.0,0.00010958,2]
[350596961,1737985850284,-500.0,0.00010958,2]
[350596962,1737985850294,-1308.62,0.00010958,2]
[350596963,1737985850303,-539.22,0.00010958,2]
[350596964,1737985850315,-500.0,0.00010958,2]
[350596965,1737985850324,-500.0,0.00010958,2]
[350596966,1737985850333,-500.0,0.00010958,2]
[350596967,1737985850343,-1308.62,0.00010958,2]
[350596968,1737985850353,-500.0,0.00010958,2]
[350596969,1737985850362,-500.0,0.00010958,2]
[350596970,1737985850373,-500.0,0.00010958,2]
[350596971,1737985850383,-532.36455223,0.00010958,2]
[350596972,1737985850394,-500.0,0.00010958,2]
[350596973,1737985850404,-500.0,0.00010958,2]
[350596974,1737985850413,-500.0,0.00010958,2]
[350596975,1737985850422,-500.0,0.00010958,2]
[350596976,1737985850431,-585.09,0.00010958,2]
[350596977,1737985850440,-500.0,0.00010958,2]
[350596978,1737985850449,-585.09,0.00010958,2]
[350596979,1737985850458,-285.24638972,0.00010958,2]
[350596980,1737985850467,-585.09,0.00010958,2]
[350596981,1737985850476,-500.0,0.00010958,2]
[350596982,1737985850485,-585.09,0.00010958,2]
[350596983,1737985850495,-603.35174939,0.00010958,2]
[350596984,1737985850504,-500.0,0.00010958,2]
[350596985,1737985850513,-500.0,0.00010958,2]
[350596986,1737985850523,-500.43427372,0.00010958,2]
[350596987,1737985850532,-500.0,0.00010958,2]
[350596988,1737985850541,-619.28,0.00010958,2]
[350596989,1737985850550,-619.28,0.00010958,2]
[350596990,1737985850560,-619.28,0.00010958,2]
[350596991,1737985850569,-619.28,0.00010958,2]
[350596992,1737985850579,-619.28,0.00010958,2]
[350596993,1737985850588,-619.28,0.00010958,2]
[350596994,1737985850597,-619.28,0.00010958,2]
[350596995,1737985850606,-500.0,0.00010958,2]
[350596996,1737985850615,-500.0,0.00010958,2]
[350596997,1737985850626,-500.0,0.00010958,2]
[350596998,1737985850637,-314.033481,0.00010958,2]
[350596999,1737985850646,-500.0,0.00010958,2]
[350597000,1737985850656,-314.033481,0.00010958,2]
[350597001,1737985850665,-246.48,0.00010958,2]
[350597002,1737985850675,-252.88,0.00010958,2]
[350597003,1737985850685,-250.74,0.00010958,2]
[350597004,1737985850695,-151.0,0.00010959,2]
[350597005,1737985850704,-151.0,0.00010959,2]
[350597006,1737985850713,-151.0,0.00010959,2]
[350597007,1737985850722,-153.648669,0.00010959,2]
[350597008,1737985850731,-2684.73,0.00010959,2]
[350597009,1737985850741,-500.0,0.00010959,2]
[350597010,1737985850750,-500.0,0.00010973,2]
[350597011,1737985850759,-709.79042958,0.00010985,2]
[350597012,1737985850768,-908.73177876,0.00010985,2]
[350597013,1737985850778,-503.0,0.00010995,2]
[350597014,1737985850788,-500.0,0.00010995,2]
[350597015,1737985850797,-252.09380774,0.00010995,2]
[350597016,1737985850808,-687.38,0.00010995,2]
[350597017,1737985850817,-500.0,0.00010995,2]
[350597018,1737985850826,-290.05383315,0.00010995,2]
[350597019,1737985850835,-500.0,0.00010995,2]
[350597020,1737985850844,-500.0,0.00010995,2]
[350597021,1737985850853,-304.97465952,0.00010995,2]
[350597022,1737985850862,-500.0,0.00010995,2]
[350597023,1737985850871,-462.65161222,0.00010995,2]
[350597024,1737985850885,-639.90450364,0.00010995,2]
[350597025,1737985850895,-450.99529832,0.00010995,2]
[350597026,1737985850904,-263.24837452,0.00010995,2]
[350597027,1737985850914,-183.24144188,0.00010995,2]
[350597028,1737985850923,-500.0,0.00010995,2]
[350597029,1737985850933,-622.67,0.00010995,2]
[350597030,1737985850943,-500.0,0.00010995,2]
[350597031,1737985850952,-710.48,0.00010995,2]
[350597032,1737985850961,-500.0,0.00010995,2]
[350597033,1737985850970,-652.85,0.00010995,2]
[350597034,1737985850979,-835.49,0.00010995,2]
[350597035,1737985850988,-1134.84,0.00010995,2]
[350597036,1737985850997,-500.0,0.00010995,2]
[350597037,1737985851006,-576.53,0.00010995,2]
[350597038,1737985851015,-710.81,0.00010995,2]
[350597039,1737985851025,-673.68,0.00010995,2]
[350597040,1737985851035,-534.48,0.00010995,2]
[350597041,1737985851044,-825.4,0.00010995,2]
[350597042,1737985851054,-1202.3,0.00010995,2]
[350597043,1737985851063,-500.0,0.00010995,2]
[350597044,1737985851072,-500.0,0.00010995,2]
[350597045,1737985851083,-2264.59,0.00010995,2]
[350597046,1737985851092,-500.0,0.00010995,2]
[350597047,1737985851101,-500.0,0.00010995,2]
[350597048,1737985851111,-1994.83,0.00010995,2]
[350597049,1737985851120,-500.0,0.00010995,2]
[350597050,1737985851131,-500.0,0.00010995,2]
[350597051,1737985851140,-569.16,0.00010995,2]
[350597052,1737985851149,-329.56133264,0.00010995,2]
[350597053,1737985851158,-799.33,0.00010995,2]
[350597054,1737985851167,-500.0,0.00010995,2]
[350597055,1737985851177,-173.6918832,0.00010995,2]
[350597056,1737985851186,-500.0,0.00010995,2]
[350597057,1737985851195,-500.0,0.00010995,2]
[350597058,1737985851204,-500.0,0.00010995,2]
[350597059,1737985851214,-500.0,0.00010995,2]
[350597060,1737985851223,-856.68,0.00010995,2]
[350597061,1737985851232,-1678.87,0.00010995,2]
[350597062,1737985851242,-500.0,0.00010995,2]
[350597063,1737985851250,-575.58,0.00010995,2]
[350597064,1737985851259,-500.0,0.00010995,2]
[350597065,1737985851268,-632.14,0.00010995,2]
[350597066,1737985851277,-603.37,0.00010995,2]
[350597067,1737985851286,-568.28,0.00010995,2]
[350597068,1737985851295,-706.82,0.00010995,2]
[350597069,1737985851307,-734.05,0.00010995,2]
[350597070,1737985851318,-1860.18,0.00010995,2]
[350597071,1737985851328,-500.0,0.00010995,2]
[350597072,1737985851337,-500.0,0.00010995,2]
[350597073,1737985851346,-3144.17,0.00010995,2]
[350597074,1737985851357,-583.10897675,0.00010995,2]
[350597075,1737985851366,-500.0,0.00010995,2]
[350597076,1737985851377,-619.28,0.00010995,2]
[350597077,1737985851387,-627.45,0.00010996,2]
[350597078,1737985851397,-627.45,0.00010996,2]
[350597079,1737985851406,-627.45,0.00010996,2]
[350597080,1737985851415,-627.45,0.00010996,2]
[350597081,1737985851424,-627.64,0.00010996,2]
[350597082,1737985851433,-551.4,0.00010996,2]
[350597083,1737985851443,-551.4,0.00010996,2]
[350597084,1737985851452,-551.4,0.00010996,2]
[350597085,1737985851461,-551.4,0.00010996,2]
[350597086,1737985851470,-551.6339411,0.00010996,2]
[350597087,1737985851479,-556.33,0.00010996,2]
[350597088,1737985851488,-556.33,0.00010996,2]
[350597089,1737985851497,-556.33,0.00010996,2]
[350597090,1737985851506,-556.33,0.00010996,2]
[350597091,1737985851515,-556.4774232,0.00010996,2]
[350597092,1737985851524,-500.0,0.00010996,2]
[350597093,1737985851533,-171.75076606,0.00010996,2]
[350597094,1737985851542,-500.0,0.00010996,2]
[350597095,1737985851552,-500.0,0.00010996,2]
[350597096,1737985851561,-500.0,0.00010996,2]
[350597097,1737985851570,-500.0,0.00010996,2]
[350597098,1737985851579,-500.0,0.00010996,2]
[350597099,1737985851588,-500.0,0.00010996,2]
[350597100,1737985851598,-742.01,0.00010996,2]
[350597101,1737985851608,-500.0,0.00010996,2]
[350597102,1737985851617,-1079.62,0.00010996,2]
[350597103,1737985851628,-1753.09,0.00010996,2]
[350597104,1737985851637,-846.32,0.00010996,2]
[350597105,1737985851647,-1296.38,0.00010996,2]
[350597106,1737985851656,-607.9,0.00010996,2]
[350597107,1737985851665,-1537.9,0.00010996,2]
[350597108,1737985851674,-500.0,0.00010996,2]
[350597109,1737985851683,-953.87,0.00010996,2]
[350597110,1737985851693,-669.81,0.00010996,2]
[350597111,1737985851702,-500.0,0.00010996,2]
[350597112,1737985851711,-2104.64,0.00010996,2]
[350597113,1737985851721,-612.17,0.00010996,2]
[350597114,1737985851730,-1373.46,0.00010996,2]
[350597115,1737985851740,-1433.62,0.00010996,2]
[350597116,1737985851749,-500.0,0.00010996,2]
[350597117,1737985851757,-1265.15,0.00010996,2]
[350597118,1737985851767,-500.0,0.00010996,2]
[350597119,1737985851776,-542.81,0.00010996,2]
[350597120,1737985851785,-1477.25,0.00010996,2]
[350597121,1737985851795,-703.91,0.00010996,2]
[350597122,1737985851804,-1237.57,0.00010996,2]
[350597123,1737985851813,-410.4,0.00010996,2]
[350597124,1737985851822,-923.76,0.00010996,2]
[350597125,1737985851832,-512.15,0.00010996,2]
[350597126,1737985851841,-5996.27,0.00010996,2]
[350597127,1737985851850,-1494.08,0.00010996,2]
[350597128,1737985851991,-581.61,0.00010996,2]
[350597129,1737985852001,-982.6,0.00010996,2]
[350597130,1737985852010,-500.0,0.00010996,2]
[350597131,1737985852019,-1309.3,0.00010996,2]
[350597132,1737985852029,-500.0,0.00010996,2]
[350597133,1737985852038,-539.22,0.00010996,2]
[350597134,1737985852047,-1308.62,0.00010996,2]
[350597135,1737985852056,-585.09,0.00010996,2]
[350597136,1737985852065,-432.5800011,0.00010996,2]
[350597137,1737985852075,-500.0,0.00010997,2]
[350597138,1737985852084,-687.38,0.00010997,2]
[350597139,1737985852093,-500.0,0.00010997,2]
[350597140,1737985852102,-500.0,0.00010997,2]
[350597141,1737985852112,-500.0,0.00010997,2]
[350597142,1737985852121,-321.47750011,0.00010997,2]
[350597143,1737985852131,-622.67,0.00010997,2]
[350597144,1737985852141,-500.0,0.00010997,2]
[350597145,1737985852149,-710.48,0.00010997,2]
[350597146,1737985852159,-500.0,0.00010997,2]
[350597147,1737985852168,-652.85,0.00010997,2]
[350597148,1737985852177,-835.49,0.00010997,2]
[350597149,1737985852186,-1134.84,0.00010997,2]
[350597150,1737985852195,-500.0,0.00010997,2]
[350597151,1737985852204,-576.53,0.00010997,2]
[350597152,1737985852213,-710.81,0.00010997,2]
[350597153,1737985852223,-1317.33,0.00010997,2]
[350597154,1737985852232,-673.68,0.00010997,2]
[350597155,1737985852241,-534.48,0.00010997,2]
[350597156,1737985852251,-842.12,0.00010997,2]
[350597157,1737985852260,-825.4,0.00010997,2]
[350597158,1737985852270,-1202.3,0.00010997,2]
[350597159,1737985852279,-500.0,0.00010997,2]
[350597160,1737985852289,-2264.59,0.00010997,2]
[350597161,1737985852298,-500.0,0.00010997,2]
[350597162,1737985852309,-500.0,0.00010997,2]
[350597163,1737985852321,-500.0,0.00010997,2]
[350597164,1737985852330,-1215.64,0.00010997,2]
[350597165,1737985852339,-1994.83,0.00010997,2]
[350597166,1737985852349,-500.0,0.00010997,2]
[350597167,1737985852358,-500.0,0.00010997,2]
[350597168,1737985852367,-1544.24,0.00010997,2]
[350597169,1737985852378,-569.16,0.00010997,2]
[350597170,1737985852387,-659.98008939,0.00010997,2]
[350597171,1737986213599,693.47,8.219e-05,2]
[350597172,1737986383453,1000.0,9e-05,2]
[350597173,1737986451933,151.0,0.00023,120]
[350597175,1737986722121,-2967.540036,9.576e-05,2]
[350597176,1737986722143,-1000.0,9.625e-05,2]
[350597177,1737986722165,-300.0,9.654e-05,2]
[350597178,1737986722186,-673.04,9.654e-05,2]
[350597179,1737986722209,-301.1,9.658e-05,2]
[350597180,1737986722231,-166.08,9.662e-05,2]
[350597181,1737986722253,-306.12,9.666e-05,2]
[350597182,1737986722275,-2000.0,9.668e-05,2]
[350597183,1737986722301,-687.88,9.668e-05,2]
[350597184,1737986722323,-190.14,9.686e-05,2]
[350597185,1737986722344,-1000.0,9.901e-05,2]
[350597186,1737986722371,-173.3,9.922e-05,2]
[350597187,1737986722393,-1000.0,9.962e-05,2]
[350597188,1737986722415,-1000.0,9.996e-05,2]
[350597189,1737986722438,-1000.0,0.00010009,2]
[350597190,1737986722460,-1000.0,0.00010015,2]
[350597191,1737986722482,-587.54,0.00010042,2]
[350597192,1737986722505,-1000.0,0.00010065,2]
[350597193,1737986722527,-460.77993065,0.00010066,2]
[350597194,1737986722549,-250.0,0.00010072,2]
[350597195,1737986722571,-181.4,0.00010137,2]
[350597196,1737986722596,-2123.95,0.00010153,2]
[350597197,1737986722620,-1277.5,0.0001016,2]
[350597198,1737986722641,-250.0,0.0001016,2]
[350597199,1737986722666,-1319.87,0.00010279,2]
[350597200,1737986722688,-186.6,0.00010281,2]
[350597201,1737986722709,-560.61,0.00010296,2]
[350597202,1737986722731,-693.47,0.00010478,2]
[350597203,1737986722754,-150.0,0.00010539,2]
[350597204,1737986722778,-150.0,0.00010564,2]
[350597205,1737986722801,-150.0,0.00010584,2]
[350597206,1737986722823,-150.0,0.00010584,2]
[350597207,1737986722847,-150.0,0.00010586,2]
[350597208,1737986722871,-150.0,0.00010587,2]
[350597209,1737986722894,-150.0,0.000106,2]
[350597210,1737986723111,-150.0,0.00010602,2]
[350597211,1737986723135,-150.0,0.00010607,2]
[350597212,1737986723156,-150.0,0.00010645,2]
[350597213,1737986723179,-150.0,0.00010649,2]
[350597214,1737986723201,-150.0,0.00010651,2]
[350597215,1737986723223,-150.0,0.0001066,2]
[350597216,1737986723246,-150.0,0.00010672,2]
[350597217,1737986723268,-150.0,0.00010676,2]
[350597218,1737986723292,-150.0,0.00010683,2]
[350597219,1737986723315,-150.0,0.00010684,2]
[350597220,1737986723337,-150.0,0.00010698,2]
[350597221,1737986723358,-150.0,0.00010701,2]
[350597222,1737986723382,-150.0,0.00010705,2]
[350597223,1737986723405,-150.0,0.00010707,2]
[350597224,1737986723429,-150.0,0.00010707,2]
[350597225,1737986723453,-150.0,0.0001071,2]
[350597226,1737986723476,-150.0,0.00010719,2]
[350597227,1737986723499,-1000.0,0.00010732,2]
[350597228,1737986723521,-150.0,0.00010737,2]
[350597229,1737986723546,-150.0,0.00010737,2]
[350597230,1737986723574,-150.0,0.00010742,2]
[350597231,1737986723603,-150.0,0.00010743,2]
[350597232,1737986723633,-150.0,0.00010749,2]
[350597233,1737986723661,-150.0,0.00010751,2]
[350597234,1737986723687,-150.0,0.00010755,2]
[350597235,1737986723710,-150.0,0.0001076,2]
[350597236,1737986723732,-250.0,0.00010762,2]
[350597237,1737986723755,-150.0,0.00010764,2]
[350597238,1737986723777,-653.99951326,0.00010765,2]
[350597239,1737986723800,-150.0,0.00010768,2]
[350597240,1737986723822,-1000.0,0.00010774,2]
[350597241,1737986723845,-1000.0,0.00010779,2]
[350597242,1737986723872,-1000.0,0.00010781,2]
[350597243,1737986723896,-150.0,0.00010791,2]
[350597244,1737986723919,-163.74564575,0.00010793,2]
[350597245,1737986723942,-150.0,0.00010794,2]
[350597246,1737986723966,-150.0,0.00010795,2]
[350597247,1737986723989,-150.0,0.00010797,2]
[350597248,1737986724012,-1000.0,0.00010798,2]
[350597249,1737986724035,-150.0,0.00010799,2]
[350597250,1737986724057,-1000.0,0.000108,2]
[350597251,1737986724081,-150.0,0.00010803,2]
[350597252,1737986724103,-150.0,0.00010809,2]
[350597253,1737986724128,-150.0,0.00010809,2]
[350597254,1737986724150,-150.0,0.00010811,2]
[350597255,1737986724172,-1000.0,0.00010816,2]
[350597256,1737986724196,-150.0,0.00010822,2]
[350597257,1737986724219,-1000.0,0.00010828,2]
[350597258,1737986724241,-1000.0,0.00010831,2]
[350597259,1737986724263,-1000.0,0.00010838,2]
[350597260,1737986724286,-1000.0,0.00010846,2]
[350597261,1737986724308,-150.0,0.00010847,2]
[350597262,1737986724329,-150.0,0.00010848,2]
[350597263,1737986724352,-150.0,0.00010849,2]
[350597264,1737986724379,-1000.0,0.00010854,2]
[350597265,1737986724401,-13689.33487434,0.00010858,2]
[350597343,1737987032194,-1685.35,9.854e-05,2]
[350597344,1737987032204,-300.0,9.856e-05,2]
[350597345,1737987032214,-23900.0,9.857e-05,2]
[350597346,1737987032223,-250.0,9.878e-05,2]
[350597347,1737987032232,-1860.09,9.938e-05,2]
[350597348,1737987032241,-1241.12035469,0.0001,2]
[350597349,1737987032251,-1000.0,0.000107,2]
[350597350,1737987032260,-150.0,0.00010718,2]
[350597351,1737987032269,-150.0,0.00010721,2]
[350597352,1737987032279,-150.0,0.00010724,2]
[350597353,1737987032288,-150.0,0.00010725,2]
[350597354,1737987032298,-1000.0,0.00010727,2]
[350597355,1737987032307,-150.0,0.00010728,2]
[350597356,1737987032316,-1000.0,0.00010732,2]
[350597357,1737987032326,-150.0,0.00010732,2]
[350597358,1737987032335,-1000.0,0.00010734,2]
[350597359,1737987032348,-150.0,0.00010743,2]
[350597360,1737987032358,-150.0,0.00010745,2]
[350597361,1737987032368,-150.0,0.00010749,2]
[350597362,1737987032378,-150.0,0.00010749,2]
[350597363,1737987032388,-150.0,0.00010755,2]
[350597364,1737987032398,-152.70963083,0.00010758,2]
[350597365,1737987032408,-150.0,0.00010762,2]
[350597366,1737987032417,-150.0,0.00010766,2]
[350597367,1737987032426,-150.0,0.0001077,2]
[350597368,1737987032435,-989.08670762,0.00010774,2]
[350597369,1737987032455,-150.0,0.00010725,2]
[350597370,1737987032465,-10.91329238,0.00010774,2]
[350597371,1737987032474,-140.55787762,0.00010775,2]
[350597372,1737987032486,-10.2985771,0.00010775,2]
[350597373,1737987032495,-150.0,0.00010782,2]
[350597374,1737987032504,-1000.0,0.00010783,2]
[350597375,1737987032513,-150.0,0.00010783,2]
[350597376,1737987032522,-150.0,0.00010789,2]
[350597377,1737987032531,-150.0,0.00010794,2]
[350597378,1737987032540,-130.84819216,0.00010797,2]
[350597379,1737987032559,-523.1513211,0.00010797,2]
[350597380,1737987032568,-828.79274622,0.00010799,2]
[350597381,1737987032577,-150.0,0.00010801,2]
[350597382,1737987032586,-1000.0,0.00010803,2]
[350597383,1737987032597,-1000.0,0.00010807,2]
[350597384,1737987032607,-150.0,0.00010809,2]
[350597385,1737987032616,-150.0,0.00010812,2]
[350597386,1737987032625,-1000.0,0.00010814,2]
[350597387,1737987032634,-150.0,0.00010822,2]
[350597388,1737987032643,-150.0,0.00010829,2]
[350597389,1737987032653,-150.0,0.0001083,2]
[350597390,1737987032664,-150.0,0.00010831,2]
[350597391,1737987032678,-150.0,0.00010835,2]
[350597392,1737987032687,-1000.0,0.00010836,2]
[350597393,1737987032697,-150.0,0.00010842,2]
[350597394,1737987032707,-420.0,0.00010842,2]
[350597395,1737987032717,-1000.0,0.00010843,2]
[350597396,1737987032726,-150.0,0.00010844,2]
[350597397,1737987032735,-150.0,0.00010849,2]
[350597398,1737987032745,-150.0,0.0001085,2]
[350597399,1737987032755,-1000.0,0.00010856,2]
[350597400,1737987032764,-1000.0,0.00010857,2]
[350597401,1737987032774,-5640.39462566,0.00010858,2]
[350597402,1737987032784,-150.0,0.00010859,2]
[350597403,1737987032794,-1000.0,0.0001086,2]
[350597404,1737987032802,-150.0,0.00010862,2]
[350597405,1737987032812,-1000.0,0.00010864,2]
[350597406,1737987032822,-536.4,0.00010865,2]
[350597407,1737987032834,-1000.0,0.00010866,2]
[350597408,1737987032844,-150.0,0.00010866,2]
[350597409,1737987032857,-150.0,0.00010873,2]
[350597410,1737987032866,-150.0,0.00010875,2]
[350597411,1737987032875,-687.88,0.00010876,2]
[350597412,1737987032885,-150.0,0.00010877,2]
[350597413,1737987032894,-150.0,0.00010879,2]
[350597414,1737987032904,-1000.0,0.00010881,2]
[350597415,1737987032914,-150.0,0.00010882,2]
[350597416,1737987032923,-150.0,0.00010882,2]
[350597417,1737987032932,-1000.0,0.00010883,2]
[350597418,1737987032942,-150.0,0.00010883,2]
[350597419,1737987032951,-1000.0,0.00010886,2]
[350597420,1737987032960,-294.0,0.00010887,2]
[350597421,1737987032969,-150.0,0.00010888,2]
[350597422,1737987032979,-1000.0,0.00010888,2]
[350597423,1737987032988,-960.59360405,0.0001089,2]
[350597424,1737987032998,-150.0,0.00010893,2]
[350597425,1737987033007,-1000.0,0.00010894,2]
[350597426,1737987033017,-1000.0,0.00010894,2]
[350597427,1737987033026,-150.0,0.00010896,2]
[350597428,1737987033036,-150.0,0.00010897,2]
[350597429,1737987033046,-150.0,0.00010897,2]
[350597430,1737987033055,-150.0,0.00010898,2]
[350597431,1737987033064,-150.0,0.00010898,2]
[350597432,1737987033074,-267.87,0.000109,2]
[350597433,1737987033084,-182.87566641,0.000109,2]
[350597434,1737987033093,-1000.0,0.00010902,2]
[350597435,1737987033106,-150.0,0.00010902,2]
[350597436,1737987033115,-1000.0,0.00010903,2]
[350597437,1737987033125,-150.0,0.00010905,2]
[350597438,1737987033134,-150.0,0.00010906,2]
[350597439,1737987033144,-150.0,0.00010906,2]
[350597440,1737987033153,-150.0,0.00010907,2]
[350597441,1737987033163,-150.0,0.00010908,2]
[350597442,1737987033173,-150.0,0.00010909,2]
[350597443,1737987033183,-150.0,0.00010909,2]
[350597444,1737987033192,-150.0,0.00010911,2]
[350597445,1737987033201,-1000.0,0.00010913,2]
[350597446,1737987033211,-150.0,0.00010915,2]
[350597447,1737987033221,-150.0,0.00010915,2]
[350597448,1737987033231,-1000.0,0.00010915,2]
[350597449,1737987033240,-150.0,0.00010917,2]
[350597450,1737987033250,-150.0,0.00010919,2]
[350597452,1737987033259,-150.0,0.0001092,2]
[350597454,1737987033268,-150.0,0.00010924,2]
[350597456,1737987033277,-150.0,0.00010926,2]
[350597458,1737987033287,-150.0,0.00010927,2]
[350597460,1737987033296,-150.0,0.00010928,2]
[350597462,1737987033306,-150.0,0.00010943,2]
[350597464,1737987033315,-150.0,0.00010948,2]
[350597465,1737987033324,-150.0,0.00010952,2]
[350597467,1737987033333,-150.0,0.00010956,2]
[350597469,1737987033343,-500.0,0.00010958,2]
[350597471,1737987033355,-500.0,0.00010958,2]
[350597474,1737987033365,-500.0,0.00010958,2]
[350597476,1737987033376,-505.87707327,0.00010958,2]
[350597477,1737987033385,-530.75141877,0.00010958,2]
[350597479,1737987033395,-500.0,0.00010958,2]
[350597481,1737987033404,-500.0,0.00010958,2]
[350597483,1737987033414,-248.29368683,0.00010958,2]
[350597485,1737987033424,-204.84046547,0.00010958,2]
[350597487,1737987033433,-257.743124,0.00010958,2]
[350597489,1737987033443,-202.96326405,0.00010958,2]